fUST/lending_fUST_20240216
["ID","MTS","AMOUNT","RATE_DAILY","PERIOD"]
[314210452,1708084233015,-155.07753877,0.00025,2]
[314210454,1708084233027,-155.07753877,0.00025,2]
[314210456,1708084233038,-262.44866171,0.00025,2]
[314210459,1708084233049,-155.07753877,0.00025,2]
[314210461,1708084233060,-174.54308282,0.00025,2]
[314210463,1708084233071,-3520.09962553,0.00025,2]
[314210465,1708084233082,-203.6363755,0.00025,2]
[314210467,1708084233093,-155.07753877,0.00025,2]
[314210469,1708084233104,-2368.77816381,0.00025,2]
[314210471,1708084233116,-155.07753877,0.00025,2]
[314210472,1708084233127,-155.07753877,0.00025,2]
[314210473,1708084233138,-3469.83625616,0.00025,2]
[314210474,1708084233149,-1748.69828075,0.00025,2]
[314210475,1708084233160,-4378.24382534,0.00025,2]
[314210476,1708084233171,-14783.83247123,0.00025,10]
[314210477,1708084233183,-16384.89344849,0.00025,2]
[314210478,1708084233193,-1000.0,0.00025,25]
[314210479,1708084233202,-1000.0,0.00025,2]
[314210481,1708084233321,-2000.0,0.00025,2]
[314210483,1708084233332,-2000.0,0.0002501,2]
[314210485,1708084233341,-2000.0,0.0002502,2]
[314210487,1708084233350,-2000.0,0.0002503,2]
[314210489,1708084233359,-2000.0,0.0002504,2]
[314210491,1708084233369,-2000.0,0.0002505,2]
[314210493,1708084233378,-2000.0,0.0002506,2]
[314210495,1708084233388,-2000.0,0.0002507,2]
[314210497,1708084233397,-2000.0,0.0002508,2]
[314210498,1708084233406,-2000.0,0.0002509,2]
[314210500,1708084233415,-2000.0,0.000251,2]
[314210502,1708084233425,-2000.0,0.0002511,2]
[314210503,1708084233434,-2000.0,0.0002512,2]
[314210505,1708084233443,-2000.0,0.0002513,2]
[314210507,1708084233452,-2000.0,0.0002514,2]
[314210508,1708084233462,-2000.0,0.0002515,2]
[314210510,1708084233471,-2000.0,0.0002516,2]
[314210512,1708084233480,-2000.0,0.0002517,2]
[314210514,1708084233491,-2000.0,0.0002518,2]
[314210516,1708084233499,-300.0,0.00025189,2]
[314210518,1708084233510,-2000.0,0.0002519,2]
[314210520,1708084233519,-2000.0,0.000252,2]
[314210521,1708084233528,-2000.0,0.0002521,2]
[314210522,1708084233537,-2000.0,0.0002522,2]
[314210524,1708084233546,-2000.0,0.0002523,2]
[314210526,1708084233555,-166.666666,0.00025235,2]
[314210528,1708084233564,-2000.0,0.0002524,2]
[314210529,1708084233574,-2000.0,0.0002525,2]
[314210531,1708084233584,-2000.0,0.0002526,2]
[314210532,1708084233593,-2000.0,0.0002527,2]
[314210533,1708084233602,-2000.0,0.0002528,2]
[314210534,1708084233612,-2000.0,0.0002529,2]
[314210535,1708084233622,-1247.88869023,0.00025297,2]
[314210536,1708084233631,-2000.0,0.000253,2]
[314210537,1708084233640,-2000.0,0.0002531,2]
[314210538,1708084233649,-2000.0,0.0002532,2]
[314210539,1708084233659,-2444.961397,0.0002533,2]
[314210540,1708084233668,-300.0,0.00025379,2]
[314210541,1708084233677,-300.0,0.000254,12]
[314210542,1708084233686,-200.0,0.00025479,2]
[314210543,1708084233696,-300.0,0.00025569,2]
[314210544,1708084233705,-1000.0,0.00025692,3]
[314210545,1708084233714,-1000.0,0.00025692,3]
[314210546,1708084233723,-1000.0,0.00025692,3]
[314210547,1708084233732,-1000.0,0.00025692,3]
[314210548,1708084233741,-1000.0,0.00025692,3]
[314210549,1708084233750,-1000.0,0.00025692,3]
[314210550,1708084233759,-1000.0,0.00025692,3]
[314210551,1708084233768,-1000.0,0.00025692,3]
[314210552,1708084233777,-1000.0,0.00025692,3]
[314210553,1708084233785,-1000.0,0.00025692,3]
[314210554,1708084233794,-1000.0,0.00025692,3]
[314210555,1708084233804,-1000.0,0.00025692,3]
[314210556,1708084233812,-1000.0,0.00025692,3]
[314210557,1708084233822,-1000.0,0.00025692,3]
[314210558,1708084233831,-1000.0,0.00025692,3]
[314210559,1708084233840,-1000.0,0.00025692,3]
[314210560,1708084233849,-1000.0,0.00025692,3]
[314210561,1708084233859,-1000.0,0.00025692,3]
[314210562,1708084233869,-1000.0,0.00025692,3]
[314210563,1708084233878,-1000.0,0.00025692,3]
[314210564,1708084233887,-1000.0,0.00025692,3]
[314210565,1708084233897,-1000.0,0.00025692,3]
[314210566,1708084233906,-1000.0,0.00025692,3]
[314210567,1708084233916,-1000.0,0.00025692,3]
[314210568,1708084233926,-1000.0,0.00025692,3]
[314210569,1708084233935,-1000.0,0.00025692,3]
[314210570,1708084233944,-1000.0,0.00025692,3]
[314210571,1708084233954,-1000.0,0.00025692,3]
[314210572,1708084233962,-1000.0,0.00025692,3]
[314210573,1708084233972,-1000.0,0.00025692,3]
[314210574,1708084233981,-1000.0,0.00025692,3]
[314210575,1708084233990,-1000.0,0.00025692,3]
[314210576,1708084234001,-1000.0,0.00025692,3]
[314210577,1708084234011,-1000.0,0.00025692,3]
[314210578,1708084234020,-1000.0,0.00025692,3]
[314210579,1708084234029,-1000.0,0.00025692,3]
[314210580,1708084234038,-3122.99013123,0.0002573,2]
[314210581,1708084234047,-300.0,0.00025759,2]
[314210582,1708084234057,-166.666666,0.00025812,2]
[314210583,1708084234066,-300.0,0.00025948,2]
[314210584,1708084234074,-1000.0,0.00025949,3]
[314210585,1708084234083,-1000.0,0.00025949,3]
[314210586,1708084234093,-1000.0,0.00025949,3]
[314210587,1708084234103,-1000.0,0.00025949,3]
[314210588,1708084234113,-1000.0,0.00025949,3]
[314210589,1708084234123,-1000.0,0.00026,26]
[314210590,1708084234131,-4804.37797803,0.00026,2]
[314210591,1708084234141,-155.07753877,0.00026,7]
[314210592,1708084234150,-1000.0,0.00026,2]
[314210593,1708084234159,-417.72438225,0.00026,2]
[314210594,1708084234169,-620.1742624,0.00026054,2]
[314210595,1708084234179,-300.0,0.00026138,2]
[314210596,1708084234188,-151.04682452,0.00026259,30]
[314210597,1708084234197,-200.0,0.00026311,15]
[314210598,1708084234207,-200.0,0.00026311,15]
[314210599,1708084234216,-382.0,0.00026311,15]
[314210600,1708084234224,-300.0,0.00026328,2]
[314210601,1708084234233,-166.666666,0.00026388,2]
[314210602,1708084234243,-1000.0,0.00026424,3]
[314210603,1708084234252,-1000.0,0.00026424,3]
[314210604,1708084234261,-1000.0,0.00026424,3]
[314210605,1708084234270,-7627.22708528,0.00026424,2]
[314210606,1708084234279,-1000.0,0.00026424,3]
[314210607,1708084234288,-7371.8347369,0.00026424,2]
[314210608,1708084234297,-1000.0,0.00026424,3]
[314210609,1708084234306,-1000.0,0.00026424,3]
[314210610,1708084234315,-1000.0,0.00026424,3]
[314210611,1708084234325,-1000.0,0.00026424,3]
[314210612,1708084234334,-1000.0,0.00026424,3]
[314210613,1708084234343,-1000.0,0.00026424,3]
[314210614,1708084234352,-13780.39196237,0.00026424,2]
[314210615,1708084234362,-1000.0,0.00026424,3]
[314210616,1708084234371,-1000.0,0.00026424,3]
[314210617,1708084234380,-1000.0,0.00026424,3]
[314210618,1708084234390,-9589.57505021,0.00026424,2]
[314210619,1708084234399,-1000.0,0.00026424,3]
[314210620,1708084234408,-1000.0,0.00026424,3]
[314210621,1708084234417,-1907.12229007,0.00026424,2]
[314210622,1708084234426,-1000.0,0.00026424,3]
[314210623,1708084234435,-1000.0,0.00026424,3]
[314210624,1708084234444,-1000.0,0.00026424,3]
[314210625,1708084234453,-1000.0,0.00026424,3]
[314210626,1708084234463,-13287.19916372,0.00026424,2]
[314210627,1708084234472,-1000.0,0.00026424,3]
[314210628,1708084234481,-1000.0,0.00026424,3]
[314210629,1708084234490,-7553.94290412,0.00026424,2]
[314210630,1708084234499,-9454.89784506,0.00026424,2]
[314210631,1708084234508,-300.0,0.00026518,2]
[314210632,1708084234517,-3122.99013123,0.00026559,2]
[314210633,1708084234528,-300.0,0.00026708,2]
[314210634,1708084234539,-151.04682452,0.00026795,7]
[314210635,1708084234551,-300.0,0.000268,2]
[314210636,1708084234561,-300.0,0.00026898,2]
[314210637,1708084234570,-300.0,0.000269,12]
[314210638,1708084234579,-166.666666,0.00026965,2]
[314210639,1708084234588,-5782.44318741,0.00027,2]
[314210640,1708084234597,-1000.0,0.00027,27]
[314210641,1708084234606,-300.0,0.00027088,2]
[314210642,1708084234617,-300.0,0.00027278,2]
[314210643,1708084234626,-151.04682452,0.00027342,4]
[314210644,1708084234635,-620.00871312,0.00027357,2]
[314210645,1708084234645,-3122.99013123,0.00027389,2]
[314210646,1708084234654,-500.0,0.00027397,2]
[314210647,1708084234663,-500.0,0.00027397,2]
[314210648,1708084234673,-500.0,0.00027397,2]
[314210649,1708084234683,-500.0,0.00027397,2]
[314210650,1708084234692,-507.78446094,0.00027397,2]
[314210651,1708084234701,-600.0,0.00027397,2]
[314210652,1708084234711,-430.50356322,0.00027397,2]
[314210653,1708084234720,-500.0,0.00027397,2]
[314210654,1708084234729,-155.0,0.00027397,2]
[314210655,1708084234738,-500.0,0.00027397,2]
[314210656,1708084234747,-160.0,0.00027397,10]
[314210657,1708084234756,-237.99635956,0.00027397,10]
[314210658,1708084234766,-300.0,0.00027468,2]
[314210659,1708084234775,-28623.66891872,0.000275,2]
[314210660,1708084234784,-2000.0,0.000275,2]
[314210661,1708084234794,-2000.0,0.0002751,2]
[314210662,1708084234803,-2000.0,0.0002752,2]
[314210663,1708084234812,-2000.0,0.0002753,2]
[314210664,1708084234821,-500.0,0.00027534,2]
[314210665,1708084234830,-2000.0,0.0002754,2]
[314210666,1708084234839,-166.666666,0.00027542,2]
[314210667,1708084234848,-2000.0,0.0002755,2]
[314210668,1708084234858,-2000.0,0.0002756,2]
[314210669,1708084234869,-2000.0,0.0002757,2]
[314210670,1708084234880,-2000.0,0.0002758,2]
[314210671,1708084234889,-2000.0,0.0002759,2]
[314210672,1708084234899,-2000.0,0.000276,2]
[314210673,1708084234909,-2000.0,0.0002761,2]
[314210674,1708084234920,-3377.984558,0.0002762,2]
[314210675,1708084234931,-300.0,0.00027658,2]
[314210676,1708084234940,-500.0,0.00027671,2]
[314210677,1708084234950,-11314.67618302,0.000278,7]
[314210678,1708084234959,-500.0,0.00027808,2]
[314210679,1708084234970,-160.0,0.00027839,10]
[314210680,1708084234979,-50000.0,0.0002784,5]
[314210681,1708084234989,-5000.0,0.00027843,5]
[314210682,1708084235000,-5000.0,0.00027843,5]
[314210683,1708084235010,-300.0,0.00027847,2]
[314210684,1708084235021,-16269.65879938,0.00027855,2]
[314210685,1708084235031,-151.04682452,0.000279,2]
[314210686,1708084235041,-403.36085334,0.000279,2]
[314210687,1708084235051,-500.0,0.00027945,2]
[314210688,1708084235061,-1000.0,0.00028,28]
[314210689,1708084235071,-500.0,0.00028,2]
[314210690,1708084235081,-2000.0,0.00028,2]
[314210691,1708084235091,-1020.2035626,0.00028,6]
[314210692,1708084235101,-600.0,0.00028,2]
[314210693,1708084235110,-300.0,0.00028037,2]
[314210694,1708084235122,-500.0,0.00028082,2]
[314210695,1708084235131,-3122.99013123,0.00028219,2]
[314210696,1708084235142,-500.0,0.00028219,2]
[314210697,1708084235152,-300.0,0.00028227,2]
[314210698,1708084235162,-500.0,0.00028356,2]
[314210699,1708084235172,-300.0,0.000284,13]
[314210700,1708084235182,-300.0,0.00028417,2]
[314210701,1708084235192,-603.39160451,0.00028493,2]
[314210702,1708084235202,-300.0,0.00028607,2]
[314210703,1708084235211,-620.00043566,0.00028724,2]
[314210704,1708084235296,-155.0,0.00028767,2]
[314210705,1708084235306,-306.0,0.00028767,2]
[314210706,1708084235316,-300.0,0.00028797,2]
[314210707,1708084235326,-13647.53974357,0.000288,2]
[314210708,1708084235336,-374.15669,0.000288,2]
[314210709,1708084235346,-11858.69386342,0.00028827,7]
[314210710,1708084235458,-4819.89958368,0.00028827,7]
[314210736,1708084240336,-1528.21146683,0.00021319,2]
[314210737,1708084240347,-1738.97568342,0.00021319,2]
[314210738,1708084240359,-1382.03552226,0.00021319,2]
[314210739,1708084240371,-959.13964055,0.00021319,2]
[314210770,1708084243197,-396.85223137,0.00021319,2]
[314210848,1708085311153,-200.0,0.00021743,7]
[314210849,1708085311178,-200.0,0.00021743,7]
[314210850,1708085322156,-300.0,0.000224,10]
[314210851,1708085345118,-176.00008454,0.00021,2]
[314210852,1708085345142,-1823.99991546,0.00021082,2]
[314210853,1708085346097,-725.55515454,0.00021082,2]
[314210854,1708085346121,-172.26792158,0.00021218,2]
[314210855,1708085346143,-1102.17692388,0.00021316,2]
[314210857,1708085377634,-1928.0,0.00021316,2]
[314210987,1708085434598,-15527.44841292,0.00021316,2]
[314210988,1708085434608,-18980.79261639,0.00021318,2]
[314210989,1708085434619,-14152.84365368,0.00021319,2]
[314210990,1708085434629,-1007.9029099,0.00021651,2]
[314210991,1708085434640,-1595.76164915,0.00021651,2]
[314210992,1708085434651,-903.9760157,0.00021651,2]
[314210993,1708085434666,-285.18397126,0.00021651,2]
[314211033,1708085438472,-1374.7546017,0.00021651,2]
[314211036,1708085438483,-1394.37795106,0.00021651,2]
[314211037,1708085438494,-164.897274,0.00021705,2]
[314211040,1708085438505,-352.28636163,0.0002188,2]
[314211622,1708085444891,-483.6140241,0.0002188,2]
[314211780,1708085446438,-6617.02645972,0.0002188,2]
[314213223,1708085612316,-1000.0,0.0003,31]
[314213224,1708085612341,-158.726108,0.00030959,35]
[314213225,1708085612365,-158.726108,0.00030959,44]
[314213226,1708085612387,-158.726108,0.00030959,52]
[314213227,1708085612412,-158.726108,0.00030959,60]
[314213228,1708085612436,-158.726108,0.00030959,69]
[314213229,1708085612460,-158.726108,0.00030959,77]
[314213230,1708085612482,-158.726108,0.00030959,86]
[314213231,1708085612505,-158.726108,0.00030959,94]
[314213232,1708085612528,-158.726108,0.00030959,103]
[314213233,1708085612550,-158.726108,0.00030959,111]
[314213234,1708085612572,-158.726108,0.00030959,119]
[314213235,1708085612596,-1000.0,0.00031,31]
[314213236,1708085612621,-150.5,0.0003197,35]
[314213237,1708085612644,-5123.0,0.0003197,35]
[314213238,1708085612667,-4217.0,0.0003197,35]
[314213239,1708085612689,-159.96,0.0003197,35]
[314213240,1708085612711,-169.74,0.0003198,35]
[314213241,1708085612733,-150.5,0.0003198,35]
[314213242,1708085612756,-5123.0,0.0003198,35]
[314213243,1708085612779,-4217.0,0.0003198,35]
[314213244,1708085612802,-150.72,0.0003198,35]
[314213245,1708085612825,-150.5,0.0003198,35]
[314213246,1708085612962,-182.3,0.0003198,35]
[314213247,1708085612986,-152.01,0.0003198,35]
[314213248,1708085613009,-150.5,0.0003199,35]
[314213249,1708085613032,-150.5,0.0003199,35]
[314213250,1708085613055,-5123.0,0.0003199,35]
[314213251,1708085613079,-4217.0,0.0003199,35]
[314213252,1708085613102,-150.5,0.0003199,35]
[314213253,1708085613125,-150.5,0.0003199,35]
[314213254,1708085613147,-150.5,0.0003199,35]
[314213255,1708085613169,-150.5,0.0003199,35]
[314213256,1708085613193,-1000.0,0.00032,32]
[314213257,1708085613224,-150.5,0.00032436,35]
[314213258,1708085613246,-150.5,0.00032436,35]
[314213259,1708085613269,-150.5,0.00032436,35]
[314213260,1708085613291,-150.5,0.00032446,35]
[314213261,1708085613314,-150.5,0.00032446,35]
[314213262,1708085613337,-150.76,0.00032446,35]
[314213263,1708085613361,-150.5,0.00032446,35]
[314213264,1708085613386,-227.23,0.00032446,35]
[314213265,1708085613409,-150.5,0.00032456,35]
[314213266,1708085613431,-150.5,0.00032456,35]
[314213267,1708085613453,-150.5,0.00032456,35]
[314213268,1708085613475,-150.5,0.00032456,35]
[314213269,1708085613498,-150.5,0.00032456,35]
[314213270,1708085613521,-158.75,0.00032456,35]
[314213271,1708085613545,-150.5,0.0003252,35]
[314213272,1708085613568,-4217.0,0.0003252,35]
[314213273,1708085613591,-5123.0,0.0003252,35]
[314213274,1708085613614,-150.5,0.0003253,35]
[314213275,1708085613637,-4217.0,0.0003253,35]
[314213276,1708085613661,-5123.0,0.0003253,35]
[314213277,1708085613696,-294.66,0.0003253,35]
[314213278,1708085613726,-4217.0,0.0003253,35]
[314213279,1708085613757,-5123.0,0.0003253,35]
[314213280,1708085613792,-150.5,0.0003254,35]
[314213281,1708085613822,-5123.0,0.0003254,35]
[314213282,1708085613851,-4217.0,0.0003254,35]
[314213283,1708085613882,-150.5,0.0003254,35]
[314213284,1708085613930,-4217.0,0.0003254,35]
[314213285,1708085613970,-5123.0,0.0003254,35]
[314213286,1708085614013,-4221.13,0.0003257,35]
[314213287,1708085614048,-5123.79,0.0003257,35]
[314213288,1708085614086,-4217.0,0.0003258,35]
[314213289,1708085614124,-5123.0,0.0003258,35]
[314213290,1708085614154,-1000.0,0.00033,33]
[314213291,1708085614191,-1208.32624809,0.0003348,30]
[314213292,1708085614225,-1000.0,0.00034,34]
[314213293,1708085614254,-4950.08385423,0.00035,30]
[314213294,1708085614285,-1586.0,0.00035,31]
[314213295,1708085614321,-1000.0,0.00035,35]
[314213296,1708085614363,-1000.0,0.00036,36]
[314213297,1708085614394,-149999.0,0.000368,30]
[314213298,1708085614423,-500000.0,0.000368,30]
[314213299,1708085614453,-2000.0,0.00036839,30]
[314213300,1708085614482,-1000.0,0.00037,37]
[314213301,1708085614513,-20000.0,0.00038,30]
[314213302,1708085614541,-200.0,0.00038,30]
[314213303,1708085614570,-1696.76,0.00038,30]
[314213304,1708085614598,-1000.0,0.00038,38]
[314213305,1708085614627,-208950.79270968,0.000384,30]
[314213306,1708085619414,-1000000.0,0.000384,30]
[314213307,1708085624646,-269482.56610273,0.000384,30]
[314213308,1708085624669,-500000.0,0.000388,35]
[314213309,1708085624690,-6000.0,0.00039,30]
[314213310,1708085624712,-9931.47414887,0.00039,120]
[314213311,1708085624734,-4201.69608274,0.00039,120]
[314213312,1708085624756,-125671.51581365,0.00039919,30]
[314213313,1708085624780,-19689.79329557,0.00039919,30]
[314213314,1708085624802,-250.0,0.00039999,35]
[314213315,1708085624823,-280.56130656,0.00039999,31]
[314213316,1708085624846,-500.0,0.00039999,31]
[314213317,1708085624867,-241.4651628,0.00039999,31]
[314213318,1708085624889,-356.8555101,0.00039999,31]
[314213319,1708085624913,-500.0,0.00039999,31]
[314213320,1708085624935,-236.00966549,0.00039999,31]
[314213321,1708085624957,-500.0,0.00039999,31]
[314213322,1708085624980,-500.0,0.00039999,31]
[314213323,1708085625004,-500.0,0.00039999,31]
[314213324,1708085625025,-500.0,0.00039999,31]
[314213325,1708085625048,-500.0,0.00039999,31]
[314213326,1708085625071,-500.0,0.00039999,31]
[314213327,1708085625093,-500.0,0.00039999,31]
[314213328,1708085625115,-500.0,0.00039999,31]
[314213329,1708085625138,-601.49284019,0.00039999,31]
[314213330,1708085625161,-325.49470485,0.00039999,31]
[314213331,1708085625183,-154.64304863,0.00039999,31]
[314213332,1708085625206,-332.66285691,0.00039999,31]
[314213333,1708085625229,-500.0,0.00039999,31]
[314213334,1708085625252,-500.0,0.00039999,31]
[314213335,1708085625274,-500.0,0.00039999,31]
[314213336,1708085625299,-500.0,0.00039999,31]
[314213337,1708085625323,-500.0,0.00039999,31]
[314213338,1708085625345,-500.0,0.00039999,31]
[314213339,1708085625369,-500.0,0.00039999,31]
[314213340,1708085625391,-500.0,0.00039999,31]
[314213341,1708085625414,-500.0,0.00039999,31]
[314213342,1708085625436,-486.03867186,0.00039999,31]
[314213343,1708085625458,-500.0,0.00039999,31]
[314213344,1708085625481,-500.0,0.00039999,31]
[314213345,1708085625505,-500.0,0.00039999,31]
[314213346,1708085625527,-500.0,0.00039999,31]
[314213347,1708085625549,-500.0,0.00039999,31]
[314213348,1708085625572,-500.0,0.00039999,31]
[314213349,1708085625594,-500.0,0.00039999,31]
[314213350,1708085625616,-500.0,0.00039999,31]
[314213351,1708085625638,-500.0,0.00039999,31]
[314213352,1708085625760,-236.81662712,0.00039999,31]
[314213353,1708085625783,-500.0,0.00039999,31]
[314213354,1708085625805,-500.0,0.00039999,31]
[314213355,1708085625829,-500.0,0.00039999,31]
[314213356,1708085625852,-500.0,0.00039999,31]
[314213357,1708085625874,-300.756901,0.00039999,31]
[314213358,1708085625896,-259.48764466,0.00039999,31]
[314213359,1708085625921,-500.0,0.00039999,31]
[314213360,1708085625944,-500.0,0.00039999,31]
[314213361,1708085625966,-500.0,0.00039999,31]
[314213362,1708085625989,-500.0,0.00039999,31]
[314213363,1708085626011,-500.0,0.00039999,31]
[314213364,1708085626033,-500.0,0.00039999,31]
[314213365,1708085626056,-500.0,0.00039999,31]
[314213366,1708085626080,-500.0,0.00039999,31]
[314213367,1708085626102,-500.0,0.00039999,31]
[314213368,1708085626125,-500.0,0.00039999,31]
[314213369,1708085626147,-500.0,0.00039999,31]
[314213370,1708085626170,-500.0,0.00039999,31]
[314213371,1708085626192,-500.0,0.00039999,31]
[314213372,1708085626216,-173.67007571,0.00039999,31]
[314213373,1708085626239,-500.0,0.00039999,31]
[314213374,1708085626261,-500.0,0.00039999,31]
[314213375,1708085626284,-500.0,0.00039999,31]
[314213376,1708085626309,-500.0,0.00039999,31]
[314213377,1708085626334,-500.0,0.00039999,31]
[314213378,1708085626356,-500.0,0.00039999,31]
[314213379,1708085626378,-500.0,0.00039999,31]
[314213380,1708085626402,-500.0,0.00039999,31]
[314213381,1708085626424,-500.0,0.00039999,31]
[314213382,1708085626447,-500.0,0.00039999,31]
[314213383,1708085626470,-500.0,0.00039999,31]
[314213384,1708085626493,-500.0,0.00039999,31]
[314213385,1708085626515,-500.0,0.00039999,31]
[314213386,1708085626538,-500.0,0.00039999,31]
[314213387,1708085626560,-500.0,0.00039999,31]
[314213388,1708085626584,-500.0,0.00039999,31]
[314213389,1708085626607,-500.0,0.00039999,31]
[314213390,1708085626629,-500.0,0.00039999,31]
[314213391,1708085626652,-350.0,0.00039999,31]
[314213392,1708085626674,-450.0,0.00039999,31]
[314213393,1708085626697,-500.0,0.00039999,31]
[314213394,1708085626720,-550.0,0.00039999,31]
[314213395,1708085626742,-261.7815337,0.0004,30]
[314213396,1708085626765,-5984.30132926,0.0004,30]
[314213397,1708085626787,-21190.9166776,0.0004,30]
[314213398,1708085630246,-41375.68124448,0.0004,30]
[314213399,1708085630271,-209.75695468,0.0004,120]
[314213400,1708085630298,-2000.0,0.0004,41]
[314213401,1708085630325,-2000.0,0.0004,120]
[314213402,1708085630350,-823.7006742,0.0004,120]
[314213403,1708085630467,-2000.0,0.0004001,41]
[314213404,1708085630492,-2000.0,0.0004002,41]
[314213405,1708085630517,-3582.294595,0.0004003,41]
[314213406,1708085630543,-2416.65249617,0.00040554,120]
[314213407,1708085630566,-218.84896226,0.000407,120]
[314213408,1708085630591,-1000.0,0.00041,41]
[314213409,1708085630616,-200.0,0.00041066,30]
[314213410,1708085630640,-200.0,0.00041066,30]
[314213411,1708085630664,-200.0,0.00041066,30]
[314213412,1708085630689,-200.0,0.00041066,30]
[314213413,1708085630713,-200.0,0.00041066,30]
[314213414,1708085630736,-200.0,0.00041066,30]
[314213415,1708085630758,-200.0,0.00041066,30]
[314213416,1708085630781,-200.0,0.00041066,30]
[314213417,1708085630804,-200.0,0.00041066,30]
[314213418,1708085630828,-350.0,0.00041066,30]
[314213419,1708085630852,-500.0,0.00041095,30]
[314213420,1708085630875,-1046.89,0.00041095,30]
[314213421,1708085630898,-500.0,0.00041095,30]
[314213422,1708085630923,-500.0,0.00041095,30]
[314213423,1708085630947,-500.0,0.00041095,30]
[314213424,1708085630970,-500.0,0.00041095,30]
[314213425,1708085630993,-500.0,0.00041095,30]
[314213426,1708085631017,-500.0,0.00041095,30]
[314213427,1708085631041,-500.0,0.00041095,30]
[314213428,1708085631065,-166.83577801,0.00041095,30]
[314213429,1708085631089,-500.0,0.00041095,30]
[314213430,1708085631112,-500.0,0.00041095,30]
[314213431,1708085631137,-500.0,0.00041095,30]
[314213432,1708085631161,-363.08676384,0.00041095,30]
[314213433,1708085631184,-500.0,0.00041095,30]
[314213434,1708085631208,-500.0,0.00041095,30]
[314213435,1708085631231,-500.0,0.00041095,30]
[314213436,1708085631254,-512.74,0.00041095,30]
[314213437,1708085631278,-500.0,0.00041095,30]
[314213438,1708085631302,-500.0,0.00041095,30]
[314213439,1708085631326,-500.0,0.00041095,30]
[314213440,1708085631350,-500.0,0.00041095,30]
[314213441,1708085631377,-1126.97,0.00041095,30]
[314213442,1708085631401,-500.0,0.00041095,30]
[314213443,1708085631425,-1325.35,0.00041095,30]
[314213444,1708085631449,-500.0,0.00041095,30]
[314213445,1708085631474,-500.0,0.00041095,30]
[314213446,1708085631498,-500.0,0.00041095,30]
[314213447,1708085631521,-267.63397741,0.00041095,30]
[314213448,1708085631545,-500.0,0.00041095,30]
[314213449,1708085631569,-500.0,0.00041095,30]
[314213450,1708085631592,-500.0,0.00041095,30]
[314213451,1708085631615,-500.0,0.00041095,30]
[314213452,1708085631669,-500.0,0.00041095,30]
[314213453,1708085631692,-797.84,0.00041095,30]
[314213454,1708085631714,-500.0,0.00041095,30]
[314213455,1708085631737,-714.39,0.00041095,30]
[314213456,1708085631759,-500.0,0.00041095,30]
[314213457,1708085631781,-500.0,0.00041095,30]
[314213458,1708085631803,-500.0,0.00041095,30]
[314213459,1708085631826,-500.0,0.00041095,30]
[314213460,1708085631847,-507.2584554,0.00041095,30]
[314213461,1708085631870,-500.0,0.00041095,30]
[314213462,1708085631892,-500.0,0.00041095,30]
[314213463,1708085631914,-500.0,0.00041095,30]
[314213464,1708085631938,-500.0,0.00041095,30]
[314213465,1708085631961,-3591.58,0.00041095,30]
[314213466,1708085631984,-500.0,0.00041095,30]
[314213467,1708085632006,-555.14,0.00041095,30]
[314213468,1708085632031,-500.0,0.00041095,30]
[314213469,1708085632054,-579.26416419,0.00041095,30]